bitfinex-derivatives/quotes_ETHF0:USTF0_20250626
["timestamp","ask_amount","ask_price","bid_price","bid_amount"]
[1750932551383,0.81037,2466.7,2466.6,8.04282505]
[1750932551691,0.81037,2466.7,2466.6,15.28182505]
[1750932551988,0.81037,2466.7,2466.6,11.25715]
[1750932552689,0.81036,2466.8,2466.7,0.81033]
[1750932552882,5.23348,2467.0,2466.8,0.8103]
[1750932552883,0.81033,2466.9,2466.8,0.8103]
[1750932553084,1.84245616,2466.9,2466.8,0.8103]
[1750932553485,1.03212616,2466.9,2466.8,3.41337505]
[1750932554284,1.84242616,2466.9,2466.8,3.41337505]
[1750932554485,1.84242616,2466.9,2466.8,0.8103]
[1750932556489,1.84242616,2466.9,2466.8,1.4699]
[1750932556689,1.03212616,2466.9,2466.8,1.4699]
[1750932557088,1.03212616,2466.9,2466.8,4.07297505]
[1750932558990,4.01807,2467.0,2466.9,0.8103]
[1750932559194,4.23864666,2467.0,2466.9,2.227]
[1750932559702,5.04891666,2467.0,2466.9,2.227]
[1750932560998,0.81024,2467.1,2467.0,0.81027]
[1750932561297,0.81024,2467.1,2467.0,4.09364505]
[1750932561603,1.8408688,2467.1,2467.0,11.33164505]
[1750932562406,1.0306288,2467.1,2467.0,11.33164505]
[1750932562694,0.81021,2467.2,2467.1,0.81023]
[1750932562900,0.8102,2467.3,2467.2,0.81015]
[1750932563091,0.8102,2467.3,2467.2,3.41322505]
[1750932563288,1.84059746,2467.3,2467.2,3.41322505]
[1750932563605,1.03039746,2467.3,2467.2,4.12482505]
[1750932563796,5.23306,2467.6,2467.3,0.81014]
[1750932563797,0.81017,2467.4,2467.3,0.81014]
[1750932564301,1.84050181,2467.4,2467.3,0.81014]
[1750932571208,1.03033181,2467.4,2467.3,0.81014]
[1750932571405,0.81008,2467.6,2467.5,0.8101]
[1750932571711,1.83952683,2467.6,2467.5,0.8101]
[1750932572204,1.02944683,2467.6,2467.5,0.8101]
[1750932572910,0.81001,2467.8,2467.7,0.81004]
[1750932573106,1.84033472,2467.8,2467.7,0.81004]
[1750932573409,0.8101,2467.6,2467.5,8.00406]
[1750932573810,1.84042472,2467.6,2467.5,8.00406]
[1750932574111,0.81001,2467.8,2467.7,0.81]
[1750932574309,1.03037518,2467.8,2467.7,0.81]
[1750932575011,1.03037518,2467.8,2467.7,1.5131]
[1750932576712,1.03037518,2467.8,2467.7,4.11617505]
[1750932577214,2.02479,2468.1,2467.7,0.7031]
[1750932577415,0.81,2467.9,2467.8,0.80997]
[1750932577615,1.84016813,2467.9,2467.8,0.80997]
[1750932578300,1.03016813,2467.9,2467.8,0.80997]
[1750932578712,1.49132,2468.2,2468.1,0.80991]
[1750932578909,2.52117374,2468.2,2468.1,0.80991]
[1750932579304,1.02985374,2468.2,2468.1,0.80991]
[1750932579711,1.02985374,2468.2,2468.1,3.41298505]
[1750932580414,0.80987,2468.2,2468.1,3.41298505]
[1750932580816,0.80987,2468.2,2468.1,0.80991]
[1750932581017,0.80994,2468.1,2468.0,8.00292]
[1750932581814,0.80994,2468.1,2468.0,0.80992]
[1750932582216,0.80994,2468.1,2468.0,7.193]
[1750932582418,0.80994,2468.1,2468.0,8.00294]
[1750932583115,0.80994,2468.1,2467.4,3.2078]
[1750932583116,5.0,2468.1,2467.4,3.2078]
[1750932583314,4.01788,2467.6,2467.5,0.8101]
[1750932583514,0.81014,2467.5,2467.4,0.81012]
[1750932584220,3.2078,2467.6,2467.5,0.8101]
[1750932584412,4.01787,2467.6,2467.5,3.41317505]
[1750932584616,3.2078,2467.6,2467.5,3.41317505]
[1750932584812,4.23816932,2467.6,2467.5,10.60517505]
[1750932585420,3.2078,2467.6,2467.5,10.60517505]
[1750932586216,3.2078,2467.9,2467.7,0.81]
[1750932586418,1.03053458,2467.8,2467.7,3.41307505]
[1750932586919,1.03053458,2467.8,2467.7,5.45627505]
[1750932587818,4.01774,2468.0,2467.9,0.80997]
[1750932588025,5.0486451,2468.0,2467.9,0.80997]
[1750932588319,0.81,2467.9,2467.8,0.80999]
[1750932588520,3.8214051,2467.9,2467.8,0.80999]
[1750932589216,3.8214051,2467.9,2467.6,7.192]
[1750932589217,0.81004,2467.8,2467.6,7.192]
[1750932589427,0.81004,2467.7,2467.6,8.00207]
[1750932589717,1.84124464,2467.7,2467.6,0.81007]
[1750932590823,6.46854464,2467.7,2467.6,0.81007]
[1750932591824,0.8101,2467.6,2467.5,8.00207]
[1750932592017,1.84130464,2467.6,2467.5,8.00207]
[1750932593514,1.84130464,2467.6,2467.5,0.81007]
[1750932593711,0.8101,2467.5,2467.4,8.00211]
[1750932594425,1.84218501,2467.5,2467.4,8.00211]
[1750932594926,0.8101,2467.5,2467.4,8.00211]
[1750932596126,0.8101,2467.6,2467.5,0.81007]
[1750932596323,1.84272782,2467.6,2467.5,0.81007]
[1750932600830,0.8102,2467.3,2467.2,0.81016]
[1750932601023,0.81023,2467.2,2467.0,7.8912]
[1750932601225,0.81023,2467.2,2467.1,0.81021]
[1750932601426,1.84396507,2467.2,2467.1,0.81021]
[1750932601628,1.03373507,2467.2,2467.1,3.41328505]
[1750932601927,7.03175256,2467.7,2467.1,3.41328505]
[1750932601928,3.2078,2467.6,2467.5,0.8101]
[1750932602735,0.8101,2467.5,2467.4,8.6324]
[1750932602932,0.81019,2467.3,2467.2,0.81016]
[1750932603125,0.8102,2467.2,2467.1,7.95722]
[1750932603326,0.81027,2467.1,2467.0,7.95722]
[1750932604239,0.81019,2467.3,2467.2,0.81018]
[1750932604535,0.81012,2467.5,2467.4,0.81014]
[1750932605333,4.01787,2467.6,2467.5,0.8101]
[1750932605633,3.2078,2467.6,2467.5,0.8101]
[1750932606234,4.01787,2467.6,2467.5,0.8101]
[1750932607338,3.2078,2467.6,2467.5,0.8101]
[1750932607635,4.01787,2467.6,2467.5,0.8101]
[1750932610529,5.61129751,2467.9,2467.7,0.81]
[1750932610734,0.81009,2467.7,2467.4,7.8228]
[1750932610928,0.8101,2467.6,2467.5,0.81008]
[1750932611235,4.0179,2467.6,2467.5,0.81008]
[1750932612029,0.81017,2467.4,2467.3,0.81014]
[1750932613640,0.81017,2467.4,2467.3,1.52094]
[1750932613936,1.83593793,2467.4,2467.3,1.52094]
[1750932614139,1.02576793,2467.4,2467.3,1.52094]
[1750932614340,1.02576793,2467.4,2467.3,4.12401505]
[1750932614534,1.83590793,2467.4,2467.3,5.45881505]
[1750932614934,1.83590793,2467.4,2467.3,2.85574]
[1750932615740,1.83590793,2467.4,2467.3,1.52094]
[1750932621044,1.83590793,2467.4,2467.3,1.52094]
[1750932621339,1.02576793,2467.4,2467.3,1.52094]
[1750932621540,1.83590793,2467.4,2467.3,1.52094]
[1750932622242,1.02576793,2467.4,2467.3,1.52094]
[1750932622637,1.83590793,2467.4,2467.3,1.52094]
[1750932623344,1.02576793,2467.4,2467.3,1.52094]
[1750932623647,1.83590793,2467.4,2467.3,1.52094]
[1750932623944,1.02576793,2467.4,2467.3,1.52094]
[1750932624341,1.83590793,2467.4,2467.3,0.81014]
[1750932624736,1.02576793,2467.4,2467.3,0.81014]
[1750932625041,1.02576793,2467.4,2467.3,2.23934]
[1750932627548,1.02576793,2467.4,2467.3,4.84241505]
[1750932628946,1.02576793,2467.4,2467.3,2.23934]
[1750932629147,1.83590793,2467.4,2467.3,2.23934]
[1750932629359,1.02576793,2467.4,2467.3,2.23934]
[1750932630157,1.02576793,2467.4,2467.3,4.84241505]
[1750932630358,1.02744603,2467.4,2467.3,4.84244505]
[1750932630550,1.02745315,2467.5,2467.4,0.81014]
[1750932630860,1.02746156,2467.5,2467.4,2.25914]
[1750932631161,1.83756156,2467.5,2467.4,2.25914]
[1750932631364,1.83756156,2467.5,2467.4,0.81014]
[1750932633662,1.02746156,2467.5,2467.4,0.81014]
[1750932633968,3.2078,2467.9,2467.8,0.81]
[1750932635564,3.2078,2467.9,2467.8,2.2027]
[1750932637570,3.2078,2467.9,2467.8,0.81]
[1750932637765,4.01777,2467.9,2467.8,7.098]
[1750932637965,0.81,2467.8,2467.7,0.714]
[1750932638169,0.81004,2467.7,2467.6,7.098]
[1750932638670,2.13214,2467.7,2467.6,7.098]
[1750932638865,2.13214,2467.7,2467.6,7.90807]
[1750932639271,2.13214,2467.7,2467.6,7.098]
[1750932639473,0.81007,2467.6,2467.5,7.90708]
[1750932640875,4.01787,2467.6,2467.5,7.90708]
[1750932642479,0.8101,2467.5,2467.4,7.90712]
[1750932644574,0.8101,2467.5,2467.4,7.097]
[1750932644770,0.8101,2467.5,2467.4,7.90714]
[1750932645470,0.8101,2467.5,2467.4,7.097]
[1750932645870,0.81014,2467.4,2467.3,0.81014]
[1750932646076,0.81017,2467.3,2467.2,7.805]
[1750932646370,1.83173587,2467.3,2467.2,8.6152]
[1750932646573,1.83173587,2467.3,2467.0,7.097]
[1750932646574,2.02556,2467.2,2467.0,7.097]
[1750932646769,1.83179587,2467.1,2467.0,7.097]
[1750932646965,1.83179587,2467.1,2467.0,7.90727]
[1750932647169,1.83179587,2467.1,2467.0,7.097]
[1750932647380,1.83179587,2467.1,2467.0,7.90727]
[1750932649782,1.83179587,2467.1,2467.0,7.097]
[1750932649980,1.83179587,2467.1,2467.0,7.90727]
[1750932651983,1.83179587,2467.1,2467.0,0.81027]
[1750932652378,0.81027,2467.0,2466.9,3.41334505]
[1750932652782,0.81025,2467.2,2467.1,0.8102]
[1750932653084,1.83160044,2467.2,2467.1,0.8102]
[1750932653983,0.81029,2467.1,2467.0,0.81024]
[1750932654174,1.83164044,2467.1,2467.0,0.81024]
[1750932659884,8.62442549,2467.1,2466.1,7.098]
[1750932660075,4.01832,2466.3,2466.2,3.5359]
[1750932660781,3.2078,2466.3,2466.2,3.5359]
[1750932662084,4.0183,2466.3,2466.2,2.7254]
[1750932662380,0.81053,2466.2,2466.1,7.098]
[1750932663286,0.8106,2466.0,2465.9,0.81062]
[1750932663486,4.0184,2466.0,2465.9,7.85862]
[1750932663682,3.2078,2466.0,2465.9,0.81062]
[1750932663989,3.2078,2466.0,2465.9,7.85862]
[1750932664177,3.2078,2466.0,2465.9,9.24822]
[1750932664981,3.2078,2466.6,2466.5,0.81043]
[1750932665282,3.2078,2466.6,2466.5,7.048]
[1750932665486,5.03622039,2466.6,2466.5,7.048]
[1750932666887,5.03622039,2466.6,2465.8,0.81064]
[1750932666888,2.02617,2466.4,2465.8,0.81064]
[1750932667084,0.81063,2465.9,2465.8,1.48624]
[1750932667290,3.2078,2466.3,2466.0,0.81059]
[1750932667592,0.81056,2466.1,2465.9,7.048]
[1750932667782,3.2078,2466.0,2465.7,0.7021]
[1750932667984,3.2078,2466.0,2465.9,0.81063]
[1750932668288,0.81057,2466.1,2466.0,0.8106]
[1750932669085,0.81056,2466.2,2466.0,0.8106]
[1750932669290,0.81056,2466.1,2466.0,0.8106]
[1750932669683,0.81056,2466.1,2465.8,8.4607]
[1750932669684,3.2078,2466.3,2466.2,0.81053]
[1750932669889,3.2078,2466.3,2466.2,7.85953]
[1750932670393,3.2078,2466.6,2466.3,0.8105]
[1750932670693,3.2078,2466.6,2466.5,0.81043]
[1750932671094,3.2078,2466.6,2466.5,2.22313]
[1750932671386,28.25389674,2467.3,2466.5,2.22313]
[1750932671387,3.13669674,2467.4,2467.1,0.81023]
[1750932671588,0.81023,2467.2,2467.0,7.85924]
[1750932671889,1.01873625,2467.1,2467.0,7.85924]
[1750932672089,0.81018,2467.3,2467.0,7.85924]
[1750932672090,0.81018,2467.3,2467.1,0.81023]
[1750932672391,0.81023,2467.1,2467.0,7.049]
[1750932672591,1.82959261,2467.1,2467.0,7.85927]
[1750932672792,1.01936261,2467.1,2467.0,7.85927]
[1750932673687,4.01795,2467.4,2467.3,0.81017]
[1750932673895,5.03667812,2467.4,2467.3,0.81017]
[1750932674093,1.82887812,2467.4,2467.3,0.81017]
[1750932674289,1.82887812,2467.4,2467.2,0.81017]
[1750932674494,1.01872812,2467.3,2467.2,0.81017]
[1750932674695,1.82889812,2467.3,2467.2,0.81017]
[1750932674892,1.01872812,2467.3,2467.2,0.81017]
[1750932675299,1.82889812,2467.3,2467.2,2.24387]
[1750932675485,1.01872812,2467.3,2467.2,2.24387]
[1750932675691,1.01925453,2467.4,2467.3,0.81017]
[1750932675885,1.01925272,2467.4,2467.3,0.81017]
[1750932676094,1.82940272,2467.4,2467.3,0.81017]
[1750932676800,1.01925272,2467.4,2467.3,0.81017]
[1750932677099,1.82939272,2467.4,2467.3,0.81017]
[1750932677299,1.01925272,2467.4,2467.3,0.81017]
[1750932677499,1.82939272,2467.4,2467.3,0.81017]
[1750932678294,1.01925272,2467.4,2467.3,0.81017]
[1750932678493,6.99079674,2468.0,2467.7,0.81001]
[1750932678494,0.81001,2467.8,2467.7,0.81001]
[1750932678799,1.82838572,2467.8,2467.7,7.85801]
[1750932679600,1.82838572,2467.8,2467.7,7.048]
[1750932679997,1.82838572,2467.8,2467.7,7.85804]
[1750932680197,1.82838572,2467.8,2467.7,7.048]
[1750932680498,1.01837572,2467.8,2467.7,7.85804]
[1750932680700,1.82837572,2467.8,2467.7,7.85804]
[1750932680999,1.82837572,2467.8,2467.7,7.048]
[1750932682003,1.82837572,2467.8,2467.7,7.85804]
[1750932683503,1.82837572,2467.8,2467.7,7.048]
[1750932684104,1.01837572,2467.8,2467.7,7.85804]
[1750932684400,1.01837572,2467.8,2467.7,9.86564]
[1750932684592,1.82838572,2467.8,2467.7,9.86564]
[1750932684795,1.01837572,2467.8,2467.7,9.86564]
[1750932685400,1.82838572,2467.8,2467.7,9.86564]
[1750932686004,0.81,2467.9,2467.8,0.81001]
[1750932686806,0.81,2467.9,2467.6,0.7032]
[1750932686807,0.81004,2467.7,2467.6,0.7032]
[1750932687002,0.8101,2467.5,2467.4,1.51972]
[1750932687304,0.8101,2467.5,2467.4,8.56672]
[1750932688003,0.8101,2467.6,2467.5,0.81007]
[1750932689103,0.81003,2467.8,2467.7,0.81]
[1750932689400,0.81007,2467.7,2467.6,0.81005]
[1750932689904,0.81001,2467.9,2467.8,0.80998]
[1750932690102,1.82429674,2467.9,2467.8,7.85698]
[1750932690494,1.01428674,2467.9,2467.8,7.85698]
[1750932690699,1.01428674,2467.9,2467.8,8.55578]
[1750932691199,1.82425674,2467.9,2467.8,9.88108]
[1750932691906,1.01428674,2467.9,2467.8,12.48415505]
[1750932692102,0.81004,2468.0,2467.9,0.81001]
[1750932692701,0.81004,2467.9,2467.8,9.88114]
[1750932692901,0.81004,2467.9,2467.8,8.55587]
[1750932693114,2.60307505,2467.9,2467.8,7.001]
[1750932693311,3.41311505,2467.9,2467.8,7.001]
[1750932693504,4.08321505,2467.9,2467.8,7.001]
[1750932694006,5.09793419,2467.9,2467.8,7.001]
[1750932694206,4.08321505,2467.9,2467.8,7.001]
[1750932694508,4.08321505,2467.9,2467.7,0.8101]
[1750932694509,0.81007,2467.8,2467.7,0.8101]
[1750932694708,0.81007,2467.8,2467.7,7.8111]
[1750932694906,0.81014,2467.7,2467.6,0.81012]
[1750932695105,0.81014,2467.7,2467.6,7.81112]
[1750932696007,0.81014,2467.6,2467.5,0.7189]
[1750932696303,7.83619505,2467.7,2467.4,7.001]
[1750932696504,0.81017,2467.5,2467.4,7.8112]
[1750932696707,0.81013,2467.7,2467.6,0.81014]
[1750932697008,0.81017,2467.6,2467.5,0.81015]
[1750932698212,0.81012,2467.7,2467.6,0.81011]
[1750932699616,1.82706868,2467.7,2467.6,0.81011]
[1750932699812,1.01694868,2467.7,2467.6,0.81011]
[1750932700012,1.82705868,2467.7,2467.6,0.81011]
[1750932700515,1.82705868,2467.7,2467.6,1.53471]
[1750932701214,0.81017,2467.5,2467.4,7.0]
[1750932701408,2.02547,2467.5,2467.2,0.6658]
[1750932701604,8.32532373,2467.4,2467.3,7.0]
[1750932702907,0.81024,2467.3,2467.2,0.6658]
[1750932703116,1.82718868,2467.3,2467.2,0.6658]
[1750932704314,0.81034,2467.1,2467.0,8.47081]
[1750932704714,1.82728868,2467.1,2467.0,8.47081]
[1750932705417,1.82728868,2467.1,2467.0,1.46981]
[1750932705716,1.82728868,2467.1,2467.0,8.47081]
[1750932706213,1.82728868,2467.1,2467.0,1.46981]
[1750932707917,1.01694868,2467.1,2467.0,1.46981]
[1750932708306,1.82724868,2467.1,2467.0,1.46981]
[1750932708508,1.01694868,2467.1,2467.0,1.46981]
[1750932708713,1.82724868,2467.1,2467.0,1.46981]
[1750932709118,1.01694868,2467.1,2467.0,1.46981]
[1750932709915,1.01694868,2467.1,2466.0,3.23613061]
[1750932709916,11.82782373,2467.1,2466.0,3.23613061]
[1750932710219,3.2078,2466.3,2466.2,0.8106]
[1750932710422,4.22474868,2466.3,2466.2,0.8106]
[1750932710615,4.22474868,2466.3,2466.2,9.2235]
[1750932710811,4.22474868,2466.3,2466.2,7.8116]
[1750932711122,7.63839373,2466.3,2466.2,7.001]
[1750932712006,5.03531868,2466.3,2466.2,7.001]
[1750932712420,7.63839373,2466.3,2466.2,7.001]
[1750932713516,4.22474868,2466.3,2466.2,7.8116]
[1750932713715,3.2078,2466.3,2466.2,7.8116]
[1750932719523,4.01837,2466.3,2466.2,7.8116]
[1750932719724,3.2078,2466.3,2466.2,7.8116]
[1750932720826,3.2078,2466.3,2466.2,10.41467505]
[1750932722426,3.2078,2466.3,2466.2,7.8116]
[1750932725034,4.01837,2466.3,2466.2,7.8116]
[1750932727027,0.81076,2465.7,2465.3,3.2078]
[1750932727227,0.81076,2465.7,2465.3,2.1941]
[1750932727228,3.2078,2465.4,2465.3,2.1941]
[1750932727633,3.2078,2465.4,2465.3,9.1511]
[1750932729631,4.01866,2465.4,2465.3,1.3832]
[1750932730132,3.2078,2465.4,2465.3,9.1521]
[1750932730529,3.2078,2465.4,2465.3,1.3832]
[1750932730728,4.01866,2465.4,2465.3,9.1521]
[1750932731432,3.2078,2465.4,2465.3,9.1521]
[1750932731930,4.01866,2465.4,2465.3,9.1521]
[1750932732140,4.01866,2465.4,2465.3,8.3412]
[1750932732336,4.01866,2465.4,2465.3,9.1521]
[1750932732539,3.2078,2465.4,2465.3,9.1521]
[1750932733835,3.2078,2465.4,2465.3,9.1531]
[1750932734325,3.2078,2465.7,2465.5,2.02703]
[1750932734529,3.2078,2466.0,2465.9,0.81067]
[1750932734836,3.2078,2466.0,2465.9,7.76967]
[1750932736439,4.01847,2466.0,2465.9,7.76967]
[1750932736637,0.81077,2465.8,2465.7,0.81074]
[1750932736831,0.81077,2465.8,2465.7,7.76974]
[1750932737141,0.81082,2465.6,2465.5,7.7698]
[1750932737342,4.01862,2465.6,2465.5,7.7698]
[1750932737731,4.01862,2465.6,2465.5,6.959]
[1750932737931,5.44722,2465.6,2465.5,7.76983]
[1750932739238,6.46515484,2465.6,2465.5,7.76983]
[1750932739435,6.46515484,2465.6,2465.5,6.959]
[1750932740138,6.46515484,2465.6,2465.5,7.76983]
[1750932740737,4.22573484,2465.6,2465.5,7.76983]
[1750932742641,5.03653484,2465.6,2465.5,7.76983]
[1750932743243,4.22573484,2465.6,2465.5,7.76983]
[1750932743739,5.03653484,2465.6,2465.5,7.76983]
[1750932744741,4.22573484,2465.6,2465.5,7.76983]
[1750932747342,5.03653484,2465.6,2465.5,7.76983]
[1750932748344,6.35053484,2465.6,2465.5,7.76983]
[1750932748639,0.81096,2465.2,2465.1,0.81092]
[1750932748844,0.81096,2465.1,2465.0,7.771]
[1750932749142,3.73953867,2465.1,2464.8,0.81104]
[1750932749332,3.2078,2464.9,2464.8,0.81104]
[1750932749531,4.22587867,2464.9,2464.8,0.81104]
[1750932749732,5.03693867,2464.9,2464.8,0.81104]
[1750932749951,4.01883,2464.9,2464.8,0.81104]
[1750932752239,0.81112,2464.7,2464.6,0.8111]
[1750932752840,5.0,2464.7,2463.9,6.96]
[1750932753154,0.81129,2464.2,2464.1,0.81126]
[1750932753337,4.01909,2464.2,2464.1,0.81126]
[1750932754143,3.2078,2464.2,2464.1,0.81126]
[1750932756049,4.01906,2464.2,2464.1,0.81126]
[1750932756438,3.2078,2464.2,2464.1,0.81126]
[1750932758346,3.2078,2464.2,2463.2,0.37215073]
[1750932758543,1.48849,2464.2,2464.1,0.81129]
[1750932758848,0.81132,2464.1,2464.0,0.8113]
[1750932759243,4.69629,2464.2,2464.1,0.81129]
[1750932759547,3.885,2464.2,2464.1,0.81129]
[1750932762351,3.2078,2464.2,2464.1,0.81129]
[1750932762546,3.2078,2464.4,2464.3,0.81123]
[1750932767446,3.2078,2464.4,2464.3,2.12303]
[1750932768044,3.2078,2464.4,2464.3,0.81123]
[1750932768241,3.2078,2464.4,2464.3,2.12303]
[1750932768947,3.2078,2464.8,2464.7,0.8111]
[1750932769154,3.2078,2464.8,2464.7,7.7331]
[1750932770648,3.2078,2464.8,2464.6,0.7172]
[1750932770847,3.2078,2464.8,2464.6,7.73311]
[1750932770848,0.687,2464.7,2464.6,7.73311]
[1750932771054,0.687,2464.7,2464.6,0.81111]
[1750932772553,1.4981,2464.7,2464.6,0.81111]
[1750932774752,3.2078,2464.8,2464.7,0.8111]
[1750932774955,5.03365234,2464.8,2464.7,0.8111]
[1750932776248,4.22259234,2464.8,2464.7,0.8111]
[1750932776454,5.03365234,2464.8,2464.7,0.8111]
[1750932776855,5.03365234,2464.8,2464.6,0.8111]
[1750932776856,0.81112,2464.7,2464.6,0.8111]
[1750932777055,1.82591234,2464.7,2464.6,0.8111]
[1750932779058,3.14981234,2464.7,2464.6,0.8111]
[1750932780363,0.81118,2464.6,2464.5,0.81113]
[1750932780563,5.14272441,2464.6,2464.5,0.81113]
[1750932781863,5.14272441,2464.6,2464.3,0.681]
[1750932782062,5.81535207,2464.4,2464.3,0.681]
[1750932782258,5.03379234,2464.4,2464.3,1.49221]
[1750932782666,4.22259234,2464.4,2464.3,1.49221]
[1750932782866,5.03379234,2464.4,2464.3,1.49221]
[1750932783664,0.81126,2464.2,2464.1,7.6009]
[1750932783866,0.81126,2464.2,2464.1,8.41219]
[1750932784070,1.82605234,2464.2,2464.1,8.41219]
[1750932784268,1.82605234,2464.2,2464.1,1.49019]
[1750932784969,0.81129,2464.1,2464.0,8.3951]
[1750932785170,5.03388234,2464.1,2464.0,6.885]
[1750932785372,5.03388234,2464.1,2464.0,7.69633]
[1750932785870,5.03388234,2464.1,2464.0,0.81133]
[1750932786668,4.22259234,2464.1,2464.0,0.81133]
[1750932786863,4.22259234,2464.1,2464.0,3.41888207]
[1750932787068,3.2078,2464.1,2464.0,3.41888207]
[1750932788073,3.2078,2464.1,2464.0,8.41888207]
[1750932789176,3.2078,2464.1,2464.0,0.81133]
[1750932789976,3.2078,2464.1,2464.0,2.16373]
[1750932790367,3.2078,2464.1,2464.0,9.04973]
[1750932794678,0.8111,2464.7,2464.6,0.81113]
[1750932794978,5.03736106,2464.7,2464.6,0.81113]
[1750932798083,4.22626106,2464.7,2464.6,0.81113]
[1750932798978,5.03736106,2464.7,2464.6,0.81113]
[1750932799183,4.22626106,2464.7,2464.6,0.81113]
[1750932799883,5.03736106,2464.7,2464.6,0.81113]
[1750932800084,4.22626106,2464.7,2464.6,0.81113]
[1750932800383,5.03736106,2464.7,2464.6,0.81113]
[1750932800884,4.22626106,2464.7,2464.6,0.81113]
[1750932803786,5.03736106,2464.7,2464.6,0.81113]
[1750932806571,4.22626106,2464.7,2464.6,0.81113]
[1750932806975,5.03736106,2464.7,2464.6,0.81113]
[1750932807182,4.22626106,2464.7,2464.6,0.81113]
[1750932807390,1.01846106,2464.7,2464.6,2.15003]
[1750932807577,3.2078,2465.0,2464.9,0.81103]
[1750932807778,4.22599962,2465.0,2464.9,0.81103]
[1750932811891,0.81106,2464.9,2464.8,0.81104]
[1750932812091,1.82925962,2464.9,2464.8,0.81104]
[1750932812286,0.81106,2464.8,2464.7,1.49157]
[1750932812586,5.14121169,2464.8,2464.7,7.69607]
[1750932815287,5.14121169,2464.8,2464.7,0.81107]
[1750932817595,2.53365962,2464.8,2464.7,0.81107]
[1750932818289,1.72259962,2464.8,2464.7,0.81107]
[1750932819398,2.53365962,2464.8,2464.7,0.81107]
[1750932820693,1.72259962,2464.8,2464.7,0.81107]
[1750932820996,1.72259962,2464.8,2464.7,1.49997]
[1750932823391,1.01819962,2464.8,2464.7,1.49997]
[1750932823593,1.01819962,2464.8,2464.7,2.89887]
[1750932831102,3.2078,2465.0,2464.9,0.81103]
[1750932831302,5.62169674,2465.3,2465.2,0.81093]
[1750932831504,3.2078,2465.3,2465.2,0.81093]
[1750932837410,0.7072,2465.4,2465.3,0.8109]
[1750932839313,0.7072,2465.4,2465.3,7.6579]
[1750932839511,2.1061,2465.4,2465.3,7.6579]
[1750932840408,2.1061,2465.4,2465.3,0.8109]
[1750932840612,2.1061,2465.4,2465.3,7.6569]
[1750932840811,2.91697,2465.4,2465.3,7.6569]
[1750932841413,2.1061,2465.4,2465.3,7.6569]
[1750932841910,2.91697,2465.4,2465.3,7.6569]
[1750932842809,0.7072,2465.4,2465.3,7.6569]
[1750932843109,1.71898009,2465.4,2465.3,7.6569]
[1750932844612,1.71898009,2465.4,2465.3,7.6209]
[1750932848411,1.71898009,2465.4,2465.3,0.8109]
[1750932848717,1.71898009,2465.4,2465.3,7.6209]
[1750932849211,1.71898009,2465.4,2465.3,0.8109]
[1750932849411,1.71898009,2465.4,2465.3,7.6209]
[1750932855030,1.01178009,2465.4,2465.3,7.6209]
[1750932855230,3.2078,2465.9,2465.8,0.81073]
[1750932855542,3.8645,2465.9,2465.8,0.81073]
[1750932855832,3.2078,2465.9,2465.8,0.81073]
[1750932856037,3.2078,2465.9,2465.8,1.49273]
[1750932856645,3.2078,2465.9,2465.8,2.81603]
[1750932857135,3.08389674,2466.4,2466.3,0.81057]
[1750932857332,3.76789674,2466.6,2466.5,0.8105]
[1750932857634,5.25082829,2466.6,2466.5,0.8105]
[1750932857835,4.44035829,2466.6,2466.5,0.8105]
[1750932858038,2.024,2466.6,2466.5,0.8105]
[1750932858641,2.83447,2466.6,2466.5,0.8105]
[1750932858840,4.63155207,2466.6,2466.1,3.2078]
[1750932859038,2.60755207,2466.2,2465.7,6.809]
[1750932859343,3.41828207,2465.9,2465.8,0.81071]
[1750932862039,0.81073,2465.8,2465.7,7.61977]
[1750932862633,0.81073,2465.8,2465.7,0.81077]
[1750932862834,2.17763,2465.8,2465.7,0.81077]
[1750932864032,0.81087,2465.5,2465.4,0.81084]
[1750932864237,0.81087,2465.5,2465.4,7.61984]
[1750932865242,3.41838207,2465.6,2465.5,0.81083]
[1750932866145,0.81083,2465.6,2465.5,0.81083]
[1750932866541,0.6862,2465.7,2465.6,0.8108]
[1750932867249,1.69164384,2465.7,2465.6,0.8108]
[1750932868648,1.00544384,2465.7,2465.6,0.8108]
[1750932869945,1.81621384,2465.7,2465.6,0.8108]
[1750932870151,1.00544384,2465.7,2465.6,0.8108]
[1750932872847,1.00544384,2465.7,2465.6,2.1997]
[1750932878952,0.81068,2466.0,2465.9,0.8107]
[1750932879153,1.00646135,2466.0,2465.9,0.8107]
[1750932881055,1.81713135,2466.0,2465.9,0.8107]
[1750932882054,1.00646135,2466.0,2465.9,0.8107]
[1750932882750,1.00646135,2466.0,2465.9,2.2111]
[1750932884955,1.81713135,2466.0,2465.9,0.8107]
[1750932885153,0.8107,2465.9,2465.8,7.58272]
[1750932885358,1.81716135,2465.9,2465.8,7.58272]
[1750932888252,1.81716135,2465.9,2465.7,1.3835]
[1750932888253,0.81073,2465.8,2465.7,1.3835]
[1750932888561,2.52039135,2465.8,2465.7,8.1555]
[1750932889155,2.52039135,2465.8,2465.7,7.58277]
[1750932890561,3.83629135,2465.8,2465.7,7.58277]
[1750932890762,3.83629135,2465.8,2465.7,0.81077]
[1750932891451,5.05245135,2465.8,2465.5,6.772]
[1750932891648,0.8108,2465.6,2465.5,7.58281]
[1750932891851,1.81726135,2465.6,2465.5,7.58281]
[1750932893156,1.81726135,2465.6,2465.4,1.52495]
[1750932893354,4.42484342,2465.5,2465.4,7.58285]
[1750932893554,5.75924342,2465.5,2465.4,7.58285]
[1750932893748,5.75924342,2465.5,2465.4,0.81085]
[1750932896962,0.81093,2465.3,2465.2,0.81087]
[1750932897461,1.81739135,2465.3,2465.2,0.81087]
[1750932899668,0.81093,2465.2,2465.1,6.772]
[1750932899869,3.19389135,2465.2,2465.1,7.58296]